[Event "Titled Tuesday Blitz September 27 Early 2022"]
[White "Burmakin, Vladimir"]
[Black "Garv Gaur"]
[WhiteFideId "4105109"]
[BlackFideId "45030839"]
[WhiteElo "2513"]
[BlackElo "1950"]
[Result "1-0"]
[Round "07"]
[TimeControl "180+1"]
[Date "2022.09.27"]
[WhiteClock "0:00:57"]
[BlackClock "0:00:08"]

1. Nf3 {[%clk 0:03:00]}  d5 {[%clk 0:02:59]} 2. c4 {[%clk 0:03:00]}  c6 {[%clk 0:02:59]} 3. e3 {[%clk 0:02:58]}  Nf6 {[%clk 0:02:59]} 4. d4 {[%clk 0:02:58]}  Bf5 {[%clk 0:02:56]} 5. Nc3 {[%clk 0:02:58]}  e6 {[%clk 0:02:56]} 6. Nh4 {[%clk 0:02:57]}  Bg4 {[%clk 0:02:51]} 7. Qb3 {[%clk 0:02:55]}  Qc8 {[%clk 0:02:50]} 8. h3 {[%clk 0:02:51]}  Bh5 {[%clk 0:02:50]} 9. g4 {[%clk 0:02:50]}  Bg6 {[%clk 0:02:50]} 10. Nxg6 {[%clk 0:02:49]}  hxg6 {[%clk 0:02:51]} 11. Bg2 {[%clk 0:02:49]}  Bd6 {[%clk 0:02:45]} 12. Bd2 {[%clk 0:02:48]}  Na6 {[%clk 0:02:42]} 13. Rc1 {[%clk 0:02:47]}  Qd7 {[%clk 0:02:27]} 14. Ke2 {[%clk 0:02:25]}  Rb8 {[%clk 0:02:23]} 15. f4 {[%clk 0:02:14]}  Nc7 {[%clk 0:02:08]} 16. c5 {[%clk 0:02:07]}  Be7 {[%clk 0:02:08]} 17. Qc2 {[%clk 0:02:04]}  Kf8 {[%clk 0:01:54]} 18. Nd1 {[%clk 0:01:55]}  Rd8 {[%clk 0:01:43]} 19. Nf2 {[%clk 0:01:53]}  Nh7 {[%clk 0:01:21]} 20. g5 {[%clk 0:01:52]}  Kg8 {[%clk 0:01:14]} 21. h4 {[%clk 0:01:51]}  Nf8 {[%clk 0:01:14]} 22. Bf3 {[%clk 0:01:46]}  f5 {[%clk 0:01:14]} 23. gxf6 {[%clk 0:01:43]}  Bxf6 {[%clk 0:01:12]} 24. h5 {[%clk 0:01:34]}  gxh5 {[%clk 0:01:02]} 25. Bxh5 {[%clk 0:01:33]}  Rh6 {[%clk 0:01:02]} 26. Bg4 {[%clk 0:01:32]}  Rxh1 {[%clk 0:00:56]} 27. Rxh1 {[%clk 0:01:31]}  b6 {[%clk 0:00:53]} 28. b4 {[%clk 0:01:29]}  bxc5 {[%clk 0:00:53]} 29. bxc5 {[%clk 0:01:29]}  Rb8 {[%clk 0:00:50]} 30. Nd3 {[%clk 0:01:17]}  Qc8 {[%clk 0:00:38]} 31. Rb1 {[%clk 0:01:15]}  Rxb1 {[%clk 0:00:33]} 32. Qxb1 {[%clk 0:01:15]}  Qa6 {[%clk 0:00:33]} 33. Qb8 {[%clk 0:01:11]}  Nb5 {[%clk 0:00:32]} 34. Bxe6+ {[%clk 0:01:09]}  Kh7 {[%clk 0:00:27]} 35. Qxf8 {[%clk 0:01:07]}  Bxd4 {[%clk 0:00:09]} 36. Bf5+ {[%clk 0:01:04]}  g6 {[%clk 0:00:08]} 37. Qf7+ {[%clk 0:01:03]}  Bg7 {[%clk 0:00:08]} 38. Qxg6+ {[%clk 0:01:00]}  Kg8 {[%clk 0:00:08]} 39. Be6+ {[%clk 0:00:58]}  Kh8 {[%clk 0:00:08]} 40. Qh5+ {[%clk 0:00:57]}  Bh6 {[%clk 0:00:08]} 41. Qxh6# {[%clk 0:00:57]} 1-0


[Site "https://www.chess.com"]

[Event "Titled Tuesday Blitz September 27 Early 2022"]
[White "Buscar, Michael"]
[Black "Tari, Aryan"]
[WhiteFideId "2603616"]
[BlackFideId "1510045"]
[WhiteElo "2010"]
[BlackElo "2612"]
[Result "0-1"]
[Round "07"]
[TimeControl "180+1"]
[Date "2022.09.27"]
[WhiteClock "0:00:03"]
[BlackClock "0:00:58"]

1. d4 {[%clk 0:02:56]}  Nf6 {[%clk 0:02:59]} 2. c4 {[%clk 0:02:53]}  b6 {[%clk 0:02:59]} 3. Nc3 {[%clk 0:02:52]}  Bb7 {[%clk 0:02:57]} 4. Nf3 {[%clk 0:02:49]}  e6 {[%clk 0:02:47]} 5. Bg5 {[%clk 0:02:43]}  Bb4 {[%clk 0:02:44]} 6. e3 {[%clk 0:02:40]}  h6 {[%clk 0:02:32]} 7. Bh4 {[%clk 0:02:35]}  g5 {[%clk 0:02:30]} 8. Bg3 {[%clk 0:02:35]}  Ne4 {[%clk 0:02:31]} 9. Rc1 {[%clk 0:02:33]}  h5 {[%clk 0:02:30]} 10. h4 {[%clk 0:02:24]}  g4 {[%clk 0:02:25]} 11. Ne5 {[%clk 0:02:17]}  Bxc3+ {[%clk 0:02:21]} 12. bxc3 {[%clk 0:02:16]}  Nxg3 {[%clk 0:02:21]} 13. fxg3 {[%clk 0:02:16]}  d6 {[%clk 0:02:18]} 14. Nd3 {[%clk 0:02:13]}  Nd7 {[%clk 0:02:17]} 15. Qc2 {[%clk 0:01:59]}  Be4 {[%clk 0:02:04]} 16. Qf2 {[%clk 0:01:55]}  e5 {[%clk 0:02:02]} 17. Be2 {[%clk 0:01:53]}  Rh6 {[%clk 0:01:45]} 18. O-O {[%clk 0:01:48]}  Rf6 {[%clk 0:01:45]} 19. Qe1 {[%clk 0:01:49]}  Qe7 {[%clk 0:01:46]} 20. Qd2 {[%clk 0:01:36]}  O-O-O {[%clk 0:01:43]} 21. a4 {[%clk 0:01:26]}  Rxf1+ {[%clk 0:01:40]} 22. Bxf1 {[%clk 0:01:20]}  a5 {[%clk 0:01:40]} 23. Nf2 {[%clk 0:01:01]}  Bc6 {[%clk 0:01:33]} 24. Qa2 {[%clk 0:00:57]}  exd4 {[%clk 0:01:33]} 25. exd4 {[%clk 0:00:57]}  Qe3 {[%clk 0:01:32]} 26. Qc2 {[%clk 0:00:39]}  Qxg3 {[%clk 0:01:24]} 27. Qf5 {[%clk 0:00:39]}  Qe3 {[%clk 0:01:19]} 28. d5 {[%clk 0:00:33]}  Bxa4 {[%clk 0:01:17]} 29. Ra1 {[%clk 0:00:26]}  g3 {[%clk 0:01:13]} 30. Rxa4 {[%clk 0:00:24]}  Kb7 {[%clk 0:01:11]} 31. Ra2 {[%clk 0:00:22]}  Ne5 {[%clk 0:01:11]} 32. Re2 {[%clk 0:00:19]}  gxf2+ {[%clk 0:01:10]} 33. Qxf2 {[%clk 0:00:17]}  Qxc3 {[%clk 0:01:10]} 34. Qf6 {[%clk 0:00:14]}  Rg8 {[%clk 0:01:08]} 35. Qf5 {[%clk 0:00:10]}  Qd4+ {[%clk 0:01:02]} 36. Rf2 {[%clk 0:00:08]}  Qxh4 {[%clk 0:01:00]} 37. Rf4 {[%clk 0:00:06]}  Qg3 {[%clk 0:00:59]} 38. Re4 {[%clk 0:00:03]}  Ng4 {[%clk 0:00:58]} 0-1


[Site "https://www.chess.com"]

[Event "Titled Tuesday Blitz September 27 Early 2022"]
[White "Caruana, Fabiano"]
[Black "Abdisalimov, Abdimalik"]
[WhiteFideId "2020009"]
[BlackFideId "14206323"]
[WhiteElo "2847"]
[BlackElo "2401"]
[Result "1-0"]
[Round "07"]
[TimeControl "180+1"]
[Date "2022.09.27"]
[WhiteClock "0:02:40"]
[BlackClock "0:01:48"]

1. e3 {[%clk 0:03:00]}  Nf6 {[%clk 0:02:54]} 2. b3 {[%clk 0:02:58]}  e5 {[%clk 0:02:44]} 3. Bb2 {[%clk 0:02:58]}  d6 {[%clk 0:02:44]} 4. Nf3 {[%clk 0:02:57]}  g6 {[%clk 0:02:43]} 5. d4 {[%clk 0:02:56]}  e4 {[%clk 0:02:43]} 6. Nfd2 {[%clk 0:02:56]}  d5 {[%clk 0:02:44]} 7. c4 {[%clk 0:02:55]}  c6 {[%clk 0:02:44]} 8. Nc3 {[%clk 0:02:56]}  a6 {[%clk 0:02:40]} 9. Be2 {[%clk 0:02:55]}  Bd6 {[%clk 0:02:31]} 10. Qc2 {[%clk 0:02:48]}  O-O {[%clk 0:02:29]} 11. O-O-O {[%clk 0:02:46]}  b5 {[%clk 0:02:29]} 12. c5 {[%clk 0:02:46]}  Bc7 {[%clk 0:02:25]} 13. Kb1 {[%clk 0:02:44]}  Bf5 {[%clk 0:02:21]} 14. h3 {[%clk 0:02:43]}  h5 {[%clk 0:02:21]} 15. Rdg1 {[%clk 0:02:41]}  Qd7 {[%clk 0:02:19]} 16. Qd1 {[%clk 0:02:41]}  Kg7 {[%clk 0:02:10]} 17. g4 {[%clk 0:02:40]}  hxg4 {[%clk 0:02:05]} 18. hxg4 {[%clk 0:02:41]}  Be6 {[%clk 0:02:05]} 19. g5 {[%clk 0:02:41]}  Ne8 {[%clk 0:01:48]} 20. Ncxe4 {[%clk 0:02:40]} 1-0


[Site "https://www.chess.com"]

[Event "Titled Tuesday Blitz September 27 Early 2022"]
[White "Chernomordik, Pavel"]
[Black "Foerster-Yialamas, Lucas"]
[WhiteFideId "2804530"]
[BlackFideId "30901774"]
[WhiteElo "2217"]
[BlackElo "1804"]
[Result "0-1"]
[Round "07"]
[TimeControl "180+1"]
[Date "2022.09.27"]
[WhiteClock "0:00:28"]
[BlackClock "0:00:59"]

1. e4 {[%clk 0:03:00]}  c6 {[%clk 0:02:59]} 2. Nc3 {[%clk 0:03:00]}  d5 {[%clk 0:02:59]} 3. Qf3 {[%clk 0:02:59]}  e6 {[%clk 0:02:54]} 4. d3 {[%clk 0:02:58]}  Bb4 {[%clk 0:02:54]} 5. Bd2 {[%clk 0:02:53]}  Qf6 {[%clk 0:02:49]} 6. Qg3 {[%clk 0:02:49]}  Ne7 {[%clk 0:02:33]} 7. f4 {[%clk 0:02:40]}  d4 {[%clk 0:02:27]} 8. Nb1 {[%clk 0:02:39]}  Bxd2+ {[%clk 0:02:24]} 9. Nxd2 {[%clk 0:02:38]}  c5 {[%clk 0:02:25]} 10. Nc4 {[%clk 0:02:34]}  Nbc6 {[%clk 0:02:24]} 11. Nd6+ {[%clk 0:02:28]}  Kd7 {[%clk 0:02:25]} 12. Nf3 {[%clk 0:02:17]}  h6 {[%clk 0:02:15]} 13. Nc4 {[%clk 0:02:10]}  Ng6 {[%clk 0:02:13]} 14. f5 {[%clk 0:01:58]}  exf5 {[%clk 0:02:12]} 15. O-O-O {[%clk 0:01:56]}  fxe4 {[%clk 0:02:11]} 16. Nfd2 {[%clk 0:01:50]}  e3 {[%clk 0:02:10]} 17. Ne4 {[%clk 0:01:50]}  Qf4 {[%clk 0:02:10]} 18. Nxc5+ {[%clk 0:01:49]}  Kc7 {[%clk 0:02:07]} 19. Qxf4+ {[%clk 0:01:45]}  Nxf4 {[%clk 0:02:08]} 20. Re1 {[%clk 0:01:40]}  Bg4 {[%clk 0:02:02]} 21. g3 {[%clk 0:01:34]}  Bf3 {[%clk 0:02:00]} 22. Rg1 {[%clk 0:01:34]}  Nd5 {[%clk 0:02:00]} 23. Bg2 {[%clk 0:01:27]}  Bxg2 {[%clk 0:01:59]} 24. Rxg2 {[%clk 0:01:27]}  f5 {[%clk 0:01:59]} 25. Ne6+ {[%clk 0:01:26]}  Kd7 {[%clk 0:01:58]} 26. Nxg7 {[%clk 0:01:26]}  b5 {[%clk 0:01:55]} 27. Na3 {[%clk 0:01:23]}  Rhg8 {[%clk 0:01:47]} 28. Nxf5 {[%clk 0:01:23]}  Raf8 {[%clk 0:01:47]} 29. Nh4 {[%clk 0:01:09]}  b4 {[%clk 0:01:36]} 30. Nc4 {[%clk 0:01:08]}  Rf6 {[%clk 0:01:36]} 31. a3 {[%clk 0:00:57]}  Rgf8 {[%clk 0:01:35]} 32. axb4 {[%clk 0:00:54]}  Ncxb4 {[%clk 0:01:35]} 33. Ne5+ {[%clk 0:00:48]}  Kc7 {[%clk 0:01:32]} 34. Ng4 {[%clk 0:00:47]}  Rf1 {[%clk 0:01:31]} 35. Rg1 {[%clk 0:00:47]}  e2 {[%clk 0:01:00]} 36. Nxh6 {[%clk 0:00:35]}  Rxg1 {[%clk 0:01:00]} 37. Kd2 {[%clk 0:00:29]}  Rff1 {[%clk 0:00:58]} 38. Rxe2 {[%clk 0:00:28]}  Rd1# {[%clk 0:00:59]} 0-1


[Site "https://www.chess.com"]

[Event "Titled Tuesday Blitz September 27 Early 2022"]
[White "Chocenka, Dmitrijus"]
[Black "Quispe Santacruz, Javier"]
[WhiteFideId "12802336"]
[BlackFideId "3800920"]
[WhiteElo "2194"]
[BlackElo "1930"]
[Result "1-0"]
[Round "07"]
[TimeControl "180+1"]
[Date "2022.09.27"]
[WhiteClock "0:01:07"]
[BlackClock "0:00:17"]

1. e4 {[%clk 0:03:00]}  e5 {[%clk 0:02:59]} 2. Nf3 {[%clk 0:03:01]}  Nc6 {[%clk 0:02:58]} 3. Bb5 {[%clk 0:03:00]}  a6 {[%clk 0:02:58]} 4. Ba4 {[%clk 0:03:00]}  Nf6 {[%clk 0:02:58]} 5. d3 {[%clk 0:03:00]}  b5 {[%clk 0:02:54]} 6. Bb3 {[%clk 0:03:01]}  Be7 {[%clk 0:02:40]} 7. a4 {[%clk 0:02:59]}  Bb7 {[%clk 0:02:39]} 8. O-O {[%clk 0:02:59]}  O-O {[%clk 0:02:36]} 9. Nc3 {[%clk 0:02:59]}  d6 {[%clk 0:02:30]} 10. axb5 {[%clk 0:02:56]}  axb5 {[%clk 0:02:30]} 11. Rxa8 {[%clk 0:02:55]}  Qxa8 {[%clk 0:02:29]} 12. Nxb5 {[%clk 0:02:56]}  Qa5 {[%clk 0:02:11]} 13. Nc3 {[%clk 0:02:55]}  Nh5 {[%clk 0:02:01]} 14. Bd2 {[%clk 0:02:52]}  Nf4 {[%clk 0:02:01]} 15. Nd5 {[%clk 0:02:50]}  Qa8 {[%clk 0:01:50]} 16. Nxf4 {[%clk 0:02:50]}  exf4 {[%clk 0:01:50]} 17. Bxf4 {[%clk 0:02:50]}  Bf6 {[%clk 0:01:49]} 18. c3 {[%clk 0:02:48]}  Ne5 {[%clk 0:01:49]} 19. Nxe5 {[%clk 0:02:45]}  dxe5 {[%clk 0:01:49]} 20. Be3 {[%clk 0:02:01]}  Rd8 {[%clk 0:01:47]} 21. Qc2 {[%clk 0:01:57]}  Ba6 {[%clk 0:01:44]} 22. Rd1 {[%clk 0:01:55]}  Qb7 {[%clk 0:01:35]} 23. f3 {[%clk 0:01:49]}  Rb8 {[%clk 0:01:31]} 24. Ra1 {[%clk 0:01:39]}  Bxd3 {[%clk 0:01:24]} 25. Bxf7+ {[%clk 0:01:36]}  Kxf7 {[%clk 0:01:22]} 26. Qxd3 {[%clk 0:01:37]}  Qxb2 {[%clk 0:01:20]} 27. Rd1 {[%clk 0:01:34]}  h6 {[%clk 0:01:09]} 28. f4 {[%clk 0:01:24]}  exf4 {[%clk 0:00:58]} 29. Qd5+ {[%clk 0:01:25]}  Kg6 {[%clk 0:00:55]} 30. Qf5+ {[%clk 0:01:22]}  Kf7 {[%clk 0:00:55]} 31. Bxf4 {[%clk 0:01:14]}  Qxc3 {[%clk 0:00:46]} 32. e5 {[%clk 0:01:13]}  Qc5+ {[%clk 0:00:38]} 33. Kh1 {[%clk 0:01:13]}  Kg8 {[%clk 0:00:22]} 34. Qe6+ {[%clk 0:01:10]}  Kh8 {[%clk 0:00:19]} 35. exf6 {[%clk 0:01:11]}  Qc2 {[%clk 0:00:18]} 36. fxg7+ {[%clk 0:01:10]}  Kh7 {[%clk 0:00:17]} 37. Qxh6+ {[%clk 0:01:08]}  Kg8 {[%clk 0:00:17]} 38. Rf1 {[%clk 0:01:07]} 1-0


[Site "https://www.chess.com"]

[Event "Titled Tuesday Blitz September 27 Early 2022"]
[White "Ciuffoletti, Paolo"]
[Black "Winkels, Marcel"]
[WhiteFideId "807630"]
[BlackFideId "1003887"]
[WhiteElo "2143"]
[BlackElo "1900"]
[Result "0-1"]
[Round "07"]
[TimeControl "180+1"]
[Date "2022.09.27"]
[WhiteClock "0:00:12"]
[BlackClock "0:00:19"]

1. e4 {[%clk 0:03:00]}  c5 {[%clk 0:02:58]} 2. d4 {[%clk 0:03:00]}  cxd4 {[%clk 0:02:57]} 3. c3 {[%clk 0:03:00]}  Nf6 {[%clk 0:02:57]} 4. e5 {[%clk 0:03:00]}  Nd5 {[%clk 0:02:58]} 5. Qxd4 {[%clk 0:03:00]}  e6 {[%clk 0:02:57]} 6. Bc4 {[%clk 0:03:00]}  Nc6 {[%clk 0:02:56]} 7. Qe4 {[%clk 0:03:00]}  f5 {[%clk 0:02:56]} 8. Qe2 {[%clk 0:02:59]}  Nb6 {[%clk 0:02:52]} 9. Bb3 {[%clk 0:02:59]}  Be7 {[%clk 0:02:51]} 10. Nf3 {[%clk 0:02:59]}  O-O {[%clk 0:02:50]} 11. O-O {[%clk 0:02:59]}  Na5 {[%clk 0:02:44]} 12. Bc2 {[%clk 0:02:56]}  Qc7 {[%clk 0:02:28]} 13. b3 {[%clk 0:02:46]}  d6 {[%clk 0:02:25]} 14. exd6 {[%clk 0:02:38]}  Bxd6 {[%clk 0:02:24]} 15. c4 {[%clk 0:02:33]}  Nc6 {[%clk 0:02:19]} 16. Nc3 {[%clk 0:02:22]}  Nb4 {[%clk 0:02:17]} 17. Rd1 {[%clk 0:02:14]}  a6 {[%clk 0:02:08]} 18. Be3 {[%clk 0:01:59]}  Nxc2 {[%clk 0:02:06]} 19. Qxc2 {[%clk 0:01:58]}  Bf4 {[%clk 0:01:53]} 20. Bxf4 {[%clk 0:01:50]}  Qxf4 {[%clk 0:01:52]} 21. Rd4 {[%clk 0:01:50]}  Qc7 {[%clk 0:01:49]} 22. a4 {[%clk 0:01:37]}  e5 {[%clk 0:01:45]} 23. Rd2 {[%clk 0:01:29]}  Be6 {[%clk 0:01:40]} 24. a5 {[%clk 0:01:27]}  Nd7 {[%clk 0:01:39]} 25. Nd5 {[%clk 0:01:25]}  Bxd5 {[%clk 0:01:32]} 26. Rxd5 {[%clk 0:01:24]}  Rae8 {[%clk 0:01:24]} 27. Rad1 {[%clk 0:01:07]}  Nf6 {[%clk 0:01:22]} 28. Rd6 {[%clk 0:01:02]}  Qxa5 {[%clk 0:01:20]} 29. Qxf5 {[%clk 0:00:50]}  Qb4 {[%clk 0:01:14]} 30. h3 {[%clk 0:00:39]}  g6 {[%clk 0:00:53]} 31. Qg5 {[%clk 0:00:37]}  Ne4 {[%clk 0:00:40]} 32. Qh6 {[%clk 0:00:32]}  Nxd6 {[%clk 0:00:39]} 33. Ng5 {[%clk 0:00:32]}  Re7 {[%clk 0:00:34]} 34. Nxh7 {[%clk 0:00:32]}  Rxh7 {[%clk 0:00:33]} 35. Qxg6+ {[%clk 0:00:32]}  Rg7 {[%clk 0:00:33]} 36. Qe6+ {[%clk 0:00:28]}  Nf7 {[%clk 0:00:33]} 37. Rd3 {[%clk 0:00:28]}  Qe1+ {[%clk 0:00:32]} 38. Kh2 {[%clk 0:00:28]}  Qxf2 {[%clk 0:00:31]} 39. Rf3 {[%clk 0:00:27]}  Qd4 {[%clk 0:00:29]} 40. Qe7 {[%clk 0:00:22]}  e4 {[%clk 0:00:27]} 41. Rf4 {[%clk 0:00:21]}  Qe5 {[%clk 0:00:24]} 42. Qh4 {[%clk 0:00:13]}  Ng5 {[%clk 0:00:21]} 43. Kh1 {[%clk 0:00:13]}  Rxf4 {[%clk 0:00:20]} 44. Qh6 {[%clk 0:00:12]}  Rf1# {[%clk 0:00:19]} 0-1


[Site "https://www.chess.com"]

[Event "Titled Tuesday Blitz September 27 Early 2022"]
[White "Danielyan, Vahe"]
[Black "Weetik, Vjacheslav"]
[WhiteFideId "13304828"]
[BlackFideId "4153472"]
[WhiteElo "2421"]
[BlackElo "2469"]
[Result "0-1"]
[Round "07"]
[TimeControl "180+1"]
[Date "2022.09.27"]
[WhiteClock "0:00:41"]
[BlackClock "0:00:09"]

1. e4 {[%clk 0:03:00]}  c6 {[%clk 0:02:58]} 2. d4 {[%clk 0:02:56]}  d5 {[%clk 0:02:58]} 3. exd5 {[%clk 0:02:57]}  cxd5 {[%clk 0:02:58]} 4. Bd3 {[%clk 0:02:57]}  Nc6 {[%clk 0:02:58]} 5. c3 {[%clk 0:02:57]}  g6 {[%clk 0:02:58]} 6. Nf3 {[%clk 0:02:56]}  Bf5 {[%clk 0:02:58]} 7. Bxf5 {[%clk 0:02:52]}  gxf5 {[%clk 0:02:58]} 8. O-O {[%clk 0:02:53]}  e6 {[%clk 0:02:58]} 9. Ne5 {[%clk 0:02:52]}  Nxe5 {[%clk 0:02:53]} 10. dxe5 {[%clk 0:02:53]}  Ne7 {[%clk 0:02:54]} 11. Nd2 {[%clk 0:02:51]}  Ng6 {[%clk 0:02:51]} 12. Nf3 {[%clk 0:02:52]}  Bg7 {[%clk 0:02:47]} 13. Qa4+ {[%clk 0:02:50]}  Qd7 {[%clk 0:02:46]} 14. Qxd7+ {[%clk 0:02:50]}  Kxd7 {[%clk 0:02:47]} 15. Re1 {[%clk 0:02:51]}  f6 {[%clk 0:02:44]} 16. exf6 {[%clk 0:02:49]}  Bxf6 {[%clk 0:02:44]} 17. Bg5 {[%clk 0:02:45]}  Bg7 {[%clk 0:02:40]} 18. Rad1 {[%clk 0:02:44]}  Rac8 {[%clk 0:02:38]} 19. h4 {[%clk 0:02:41]}  h5 {[%clk 0:02:22]} 20. Be3 {[%clk 0:02:37]}  Rhe8 {[%clk 0:01:51]} 21. Bxa7 {[%clk 0:02:25]}  Ra8 {[%clk 0:01:50]} 22. Bd4 {[%clk 0:02:24]}  e5 {[%clk 0:01:51]} 23. Be3 {[%clk 0:02:25]}  Kc6 {[%clk 0:01:48]} 24. a3 {[%clk 0:02:22]}  f4 {[%clk 0:01:44]} 25. Bc1 {[%clk 0:02:17]}  Ra4 {[%clk 0:01:34]} 26. b4 {[%clk 0:02:08]}  b5 {[%clk 0:01:25]} 27. g3 {[%clk 0:02:04]}  e4 {[%clk 0:01:18]} 28. Nd4+ {[%clk 0:01:59]}  Bxd4 {[%clk 0:01:17]} 29. cxd4 {[%clk 0:01:52]}  f3 {[%clk 0:01:11]} 30. Re3 {[%clk 0:01:49]}  Kd7 {[%clk 0:01:01]} 31. Rc3 {[%clk 0:01:39]}  Rc8 {[%clk 0:00:57]} 32. Rc5 {[%clk 0:01:34]}  Rxc5 {[%clk 0:00:57]} 33. dxc5 {[%clk 0:01:32]}  Ke6 {[%clk 0:00:57]} 34. Bb2 {[%clk 0:01:32]}  Ne5 {[%clk 0:00:53]} 35. Bxe5 {[%clk 0:01:26]}  Kxe5 {[%clk 0:00:53]} 36. Rc1 {[%clk 0:01:27]}  Rxa3 {[%clk 0:00:47]} 37. c6 {[%clk 0:01:02]}  Ra8 {[%clk 0:00:46]} 38. Kf1 {[%clk 0:01:02]}  Kd6 {[%clk 0:00:39]} 39. g4 {[%clk 0:01:00]}  hxg4 {[%clk 0:00:39]} 40. h5 {[%clk 0:00:59]}  d4 {[%clk 0:00:31]} 41. c7 {[%clk 0:00:57]}  Rc8 {[%clk 0:00:31]} 42. h6 {[%clk 0:00:57]}  e3 {[%clk 0:00:27]} 43. fxe3 {[%clk 0:00:53]}  dxe3 {[%clk 0:00:27]} 44. h7 {[%clk 0:00:54]}  g3 {[%clk 0:00:24]} 45. Rd1+ {[%clk 0:00:52]}  Ke6 {[%clk 0:00:17]} 46. Rd3 {[%clk 0:00:51]}  g2+ {[%clk 0:00:16]} 47. Kg1 {[%clk 0:00:49]}  e2 {[%clk 0:00:16]} 48. Re3+ {[%clk 0:00:49]}  Kd6 {[%clk 0:00:15]} 49. Kf2 {[%clk 0:00:46]}  Kxc7 {[%clk 0:00:12]} 50. Rc3+ {[%clk 0:00:44]}  Kb7 {[%clk 0:00:11]} 51. Rxf3 {[%clk 0:00:41]}  e1=Q+ {[%clk 0:00:09]} 0-1


[Site "https://www.chess.com"]

[Event "Titled Tuesday Blitz September 27 Early 2022"]
[White "De Silva, L M S T"]
[Black "Martin Duque, Jesus"]
[WhiteFideId "9953698"]
[BlackFideId "2208954"]
[WhiteElo "2749"]
[BlackElo "2605"]
[Result "1-0"]
[Round "07"]
[TimeControl "180+1"]
[Date "2022.09.27"]
[WhiteClock "0:02:00"]
[BlackClock "0:00:47"]

1. e4 {[%clk 0:03:00]}  c5 {[%clk 0:02:59]} 2. Nf3 {[%clk 0:03:01]}  e6 {[%clk 0:02:59]} 3. g3 {[%clk 0:03:00]}  b6 {[%clk 0:02:59]} 4. Bg2 {[%clk 0:03:00]}  Bb7 {[%clk 0:02:59]} 5. d3 {[%clk 0:03:00]}  d6 {[%clk 0:02:58]} 6. O-O {[%clk 0:03:00]}  Nd7 {[%clk 0:02:58]} 7. Ne1 {[%clk 0:03:00]}  Qc7 {[%clk 0:02:58]} 8. f4 {[%clk 0:03:00]}  Ngf6 {[%clk 0:02:58]} 9. Nc3 {[%clk 0:03:01]}  Be7 {[%clk 0:02:58]} 10. h3 {[%clk 0:03:01]}  h5 {[%clk 0:02:57]} 11. Ne2 {[%clk 0:03:00]}  a6 {[%clk 0:02:57]} 12. Be3 {[%clk 0:02:51]}  b5 {[%clk 0:02:54]} 13. Qd2 {[%clk 0:02:52]}  Rc8 {[%clk 0:02:42]} 14. Bf3 {[%clk 0:02:41]}  d5 {[%clk 0:02:33]} 15. e5 {[%clk 0:02:39]}  d4 {[%clk 0:02:33]} 16. exf6 {[%clk 0:02:30]}  dxe3 {[%clk 0:02:33]} 17. fxg7 {[%clk 0:02:30]}  Rg8 {[%clk 0:02:23]} 18. Qxe3 {[%clk 0:02:30]}  h4 {[%clk 0:02:08]} 19. g4 {[%clk 0:02:27]}  Rxg7 {[%clk 0:02:08]} 20. Bxb7 {[%clk 0:02:27]}  Qxb7 {[%clk 0:02:08]} 21. Ng2 {[%clk 0:02:27]}  Qc6 {[%clk 0:01:49]} 22. Rae1 {[%clk 0:02:26]}  c4 {[%clk 0:01:44]} 23. d4 {[%clk 0:02:25]}  Nb6 {[%clk 0:01:41]} 24. f5 {[%clk 0:02:21]}  Nd5 {[%clk 0:01:18]} 25. Qh6 {[%clk 0:02:19]}  Bf8 {[%clk 0:01:14]} 26. Nef4 {[%clk 0:02:07]}  Nxf4 {[%clk 0:01:09]} 27. Qxf4 {[%clk 0:02:07]}  Qd6 {[%clk 0:00:57]} 28. fxe6 {[%clk 0:02:04]}  fxe6 {[%clk 0:00:53]} 29. Rxe6+ {[%clk 0:01:59]}  Qxe6 {[%clk 0:00:50]} 30. Qxf8+ {[%clk 0:01:59]}  Kd7 {[%clk 0:00:50]} 31. Qxg7+ {[%clk 0:02:00]}  Kc6 {[%clk 0:00:47]} 32. Rf6 {[%clk 0:02:00]} 1-0


[Site "https://www.chess.com"]

[Event "Titled Tuesday Blitz September 27 Early 2022"]
[White "Deuer, Marius"]
[Black "Stanisz, Patryk"]
[WhiteFideId "16236432"]
[BlackFideId "1123106"]
[WhiteElo "2059"]
[BlackElo "1833"]
[Result "1-0"]
[Round "07"]
[TimeControl "180+1"]
[Date "2022.09.27"]
[WhiteClock "0:01:50"]
[BlackClock "0:00:10"]

1. b3 {[%clk 0:03:00]}  e5 {[%clk 0:02:57]} 2. Bb2 {[%clk 0:03:01]}  Nc6 {[%clk 0:02:56]} 3. e3 {[%clk 0:03:01]}  d5 {[%clk 0:02:55]} 4. Bb5 {[%clk 0:02:59]}  Ne7 {[%clk 0:02:55]} 5. c4 {[%clk 0:02:56]}  a6 {[%clk 0:02:48]} 6. Bxc6+ {[%clk 0:02:50]}  Nxc6 {[%clk 0:02:49]} 7. Nf3 {[%clk 0:02:50]}  Bg4 {[%clk 0:02:31]} 8. cxd5 {[%clk 0:02:49]}  Qxd5 {[%clk 0:02:31]} 9. Nc3 {[%clk 0:02:49]}  Qd3 {[%clk 0:02:21]} 10. h3 {[%clk 0:02:43]}  Bh5 {[%clk 0:02:18]} 11. Nxe5 {[%clk 0:02:36]}  Qf5 {[%clk 0:01:17]} 12. g4 {[%clk 0:02:19]}  Qxe5 {[%clk 0:01:13]} 13. gxh5 {[%clk 0:02:19]}  O-O-O {[%clk 0:01:13]} 14. Qe2 {[%clk 0:02:10]}  Nb4 {[%clk 0:01:10]} 15. d4 {[%clk 0:02:08]}  Qf5 {[%clk 0:01:02]} 16. O-O-O {[%clk 0:02:06]}  Be7 {[%clk 0:00:43]} 17. e4 {[%clk 0:02:04]}  Qa5 {[%clk 0:00:42]} 18. a3 {[%clk 0:02:00]}  Nc6 {[%clk 0:00:41]} 19. b4 {[%clk 0:02:00]}  Qb6 {[%clk 0:00:41]} 20. Nd5 {[%clk 0:01:56]}  Rxd5 {[%clk 0:00:14]} 21. exd5 {[%clk 0:01:54]}  Bg5+ {[%clk 0:00:13]} 22. Kb1 {[%clk 0:01:52]}  Ne7 {[%clk 0:00:11]} 23. Qg4+ {[%clk 0:01:51]}  Kb8 {[%clk 0:00:09]} 24. Qxg5 {[%clk 0:01:50]}  f6 {[%clk 0:00:10]} 25. Qxg7 {[%clk 0:01:50]} 1-0


[Site "https://www.chess.com"]